Cogmind - Beta 10.2 *** ADVENTURER MODE // 2022.02.17 @ 04:16:25 Player: woegarden Result: Self-destructed Performance ------------- Evolutions (1) 500 Regions Visited (3) 600 Robots Destroyed (8) 40 Value Destroyed (238) 238 Prototype IDs (1) 20 Alien Tech Used (0) 0 Bonus (-6) -6 TOTAL SCORE: 1392 Bonus ------- Friendly Fire -6 Cogmind --------- Core Integrity 347/400 Matter 243/300 Energy 264/290 System Corruption 0% Temperature Cool (0) Movement Flying (117) Ox1 Location -9/Mines Parts ------- > --- POWER (2) -------- Light Ion Engine Improved Ion Engine > --- PROPULSION (3) --- Flight Unit Flight Unit > --- UTILITY (2) ------ Improved Heat Sink > --- WEAPON (2) ------- Advanced Beam Cannon Light Assault Rifle > --- INVENTORY (4) ---- EM Pulse Gun Light Assault Rifle Light Cannon Peak State ------------ > --- POWER ------------ Light Ion Engine > --- PROPULSION ------- Armored Wheel Armored Wheel > --- UTILITY ---------- Improved Heat Sink Improved Sensor Array > --- WEAPON ----------- Advanced Beam Cannon Light Assault Rifle > --- INVENTORY -------- EM Pulse Gun Light Assault Rifle Grenade Launcher [Rating: 14] Favorites ----------- Power Light Ion Engine Engine Light Ion Engine Propulsion Hover Unit Wheel Armored Wheel Hover Unit Hover Unit Flight Unit Flight Unit Utility Improved Heat Sink Device Improved Heat Sink Weapon Light Assault Rifle Energy Gun EM Pulse Gun Energy Cannon Advanced Beam Cannon Ballistic Gun Light Assault Rifle Launcher Grenade Launcher Build | -11 -10 -9 -9 ------- Run | Scr Mat Mat Min Slots Evolved 2 | . . 2 . Power 1 | . . 1 . Propulsion 1 | . . 1 . Utility . | . . . . Weapon . | . . . . Parts Attached 21 | 5 12 2 2 Power 3 | 1 1 1 . Engine 3 | 1 1 1 . Core . | . . . . Reactor . | . . . . Propulsion 10 | 2 5 1 2 Treads . | . . . . Leg . | . . . . Wheel 5 | 2 3 . . Hover 3 | . 2 1 . Flight 2 | . . . 2 Utility 2 | . 2 . . Device 2 | . 2 . . Storage . | . . . . Processor . | . . . . Hackware . | . . . . Protection . | . . . . Artifact . | . . . . Weapon 6 | 2 4 . . Energy Gun 1 | 1 . . . Energy Cannon 2 | . 2 . . Ballistic Gun 2 | 1 1 . . Ballistic Cannon . | . . . . Launcher 1 | . 1 . . Special Weapon . | . . . . Impact Weapon . | . . . . Slashing Weapon . | . . . . Piercing Weapon . | . . . . Special Melee Weapon . | . . . . Unidentified Prototypes 1 | . 1 . . Parts Lost . | . . . . Power . | . . . . Propulsion . | . . . . Utility . | . . . . Weapon . | . . . . Highest Loss Streak . | . . . . Average Slot Usage (%) 83 | . 86 76 88 Engine 14 | . 14 13 22 Wheel 13 | . 23 . . Hover 15 | . 4 29 30 Device 13 | . 16 11 11 Energy Cannon 11 | . 11 11 11 Ballistic Gun 12 | . 14 11 11 Naked Turns . | . . . . Heaviest Build 16 | 6 10 16 16 Greatest Support 24 | 20 24 18 18 Greatest Overweight (x) . | . . . . Average Overweight (x) . | . . . . Largest Inventory Capacity 4 | 4 4 4 4 Average Capacity 4 | 4 4 4 4 Most Carried 4 | 3 4 4 4 Average Carried 2 | . 3 3 3 Final Capacity 4 | 4 4 4 4 Final Carried 4 | 1 4 3 3 Class Distribution -------------------- 100% | Mutant Dominant Class ---------------- Mutant | -10/Materials Mutant | -9/Materials Mutant | -9/Mines Resources | -11 -10 -9 -9 ----------- Run | Scr Mat Mat Min Matter Collected 383 | 256 67 60 . Remotely . | . . . . Salvage Created 336 | 50 260 10 16 Parts 20 | 3 12 4 1 Haulers Intercepted . | . . . . Recyclers Shooed 2 | . 2 . . Parts Field Recycled . | . . . . Retrieved Matter . | . . . . Parts Self-Destructed . | . . . . Prevented . | . . . . Kills | -11 -10 -9 -9 ------- Run | Scr Mat Mat Min Combat Hostiles Destroyed 6 | 1 4 . 1 Guns 1 | 1 . . . Cannons 5 | . 4 . 1 Classes Destroyed 4 | 1 1 1 1 Recycler 1 | . 1 . . Watcher 1 | . . 1 . Swarmer 1 | . . . 1 Grunt 5 | 1 4 . . Best Kill Streak 3 | 1 3 1 1 Combat Bots Only 3 | 1 3 . 1 Max Kills in Single Turn 1 | 1 1 1 1 Gunslinging . | . . . . Exploded . | . . . . Melee . | . . . . Uniques/NPCs Destroyed . | . . . . Combat | -11 -10 -9 -9 -------- Run | Scr Mat Mat Min Damage Taken 339 | 66 149 5 119 Core 100 | 25 22 . 53 Absorbed by Shields . | . . . . Core Remaining (%) 85 | 90 81 . . Volleys Fired 43 | 11 17 9 6 Largest 2 | 2 2 2 2 Hottest 88 | 60 88 88 88 Shots Fired 81 | 17 34 18 12 Gun 49 | 17 17 9 6 Cannon 32 | . 17 9 6 Launcher . | . . . . Special . | . . . . Kinetic 38 | 6 17 9 6 Thermal 32 | . 17 9 6 Explosive . | . . . . Electromagnetic 11 | 11 . . . Robot Hit Streak 10 | 9 10 4 9 Robot Miss Streak 4 | 1 4 2 1 Penetration Max . | . . . . Secondary Targets . | . . . . Shots Hit Robots 51 | 14 18 9 10 Core Hits 21 | 2 11 3 5 Critical Hits 2 | . 2 . . Critical Kills 1 | . 1 . . Critical Parts Destroyed 1 | . 1 . . Melee Attacks . | . . . . Impact . | . . . . Slashing . | . . . . Piercing . | . . . . Sneak Attacks . | . . . . Combat Hostiles . | . . . . Follow-up Attacks . | . . . . Damage Inflicted 665 | 159 331 116 59 Guns 277 | 159 66 23 29 Cannons 376 | . 265 81 30 Explosions . | . . . . Melee . | . . . . Ramming 12 | . . 12 . Kinetic 168 | 50 66 23 29 Thermal 376 | . 265 81 30 Explosive . | . . . . Electromagnetic 109 | 109 . . . Impact . | . . . . Slashing . | . . . . Piercing . | . . . . Highest Corruption . | . . . . Average Corruption . | . . . . Corruption Purged . | . . . . Overload Shots . | . . . . Overflow Damage . | . . . . Projectiles . | . . . . Explosions . | . . . . Melee . | . . . . Knockbacks . | . . . . Impact . | . . . . Kinetic . | . . . . Secondary . | . . . . Self-Inflicted Damage 5 | . . 5 . Shots . | . . . . Rammed 2 | . . 2 . Targets Rammed 2 | . . 2 . Kicked . | . . . . Crushed . | . . . . Highest Temperature 373 | 76 373 36 54 Average Temperature 86 | 39 140 15 27 Received Heat Transfer 165 | 48 117 . . Effects 1 | . 1 . . Shutdowns 1 | . 1 . . Siege Activations . | . . . . Robots Corrupted . | . . . . Combat Hostiles . | . . . . Parts Fried . | . . . . Impact Corruptions . | . . . . Robots Melted . | . . . . Combat Hostiles . | . . . . Parts Melted 1 | . 1 . . Heat Transferred 711 | . 481 148 82 Parts Sabotaged . | . . . . Parts Stolen . | . . . . Parts Stripped . | . . . . Power Chain Reactions . | . . . . Missiles Intercepted . | . . . . Alert | -11 -10 -9 -9 ------- Run | Scr Mat Mat Min Peak Influence 135 | 20 135 70 58 Initial 48 | . 11 48 23 Average 59 | 1 75 67 57 Maximum Alert Level . | . . . . Low Security (%) 100 | 100 100 100 100 Level 1 . | . . . . Level 2 . | . . . . Level 3 . | . . . . Level 4 . | . . . . Level 5 . | . . . . High Security . | . . . . Max Security . | . . . . Squads Dispatched 2 | . . 2 . Investigation . | . . . . Extermination . | . . . . Reinforcement 2 | . . 2 . Assault . | . . . . Garrison . | . . . . Intercept . | . . . . Construction Impeded . | . . . . Haulers Reinforced . | . . . . Stealth | -11 -10 -9 -9 --------- Run | Scr Mat Mat Min Distress Signals . | . . . . Communications Jammed . | . . . . Distress Signals . | . . . . Times Spotted 11 | 1 4 2 4 Peak Tracking Total 4 | 1 4 1 3 Tactical Retreats . | . . . . Traps | -11 -10 -9 -9 ------- Run | Scr Mat Mat Min Traps Triggered . | . . . . Indirectly . | . . . . Trap Hack Attempts . | . . . . Triggered . | . . . . Disarmed . | . . . . Reprogrammed . | . . . . Reused . | . . . . Traps Extracted . | . . . . Installed . | . . . . Triggered . | . . . . Machines | -11 -10 -9 -9 ---------- Run | Scr Mat Mat Min Machines Disabled 1 | . 1 . . Max in Single Turn 1 | . 1 . . Machines Sabotaged . | . . . . Garrisons Compromised . | . . . . Overloaded Fab Kills . | . . . . Fab Network Shutdowns . | . . . . Hacking | -11 -10 -9 -9 --------- Run | Scr Mat Mat Min Machines Accessed 1 | . 1 . . Terminals . | . . . . Fabricators . | . . . . Repair Stations 1 | . 1 . . Recycling Units . | . . . . Scanalyzers . | . . . . Garrison Access . | . . . . Total Hacks 11 | . 11 . . Successful 11 | . 11 . . Failed . | . . . . Catastrophic . | . . . . Database Lockouts . | . . . . Manual . | . . . . Terminals . | . . . . Fabricators . | . . . . Repair Stations 11 | . 11 . . Recycling Units . | . . . . Scanalyzers . | . . . . Garrison Access . | . . . . Terminal Hacks . | . . . . Fabricator Hacks . | . . . . Repair Station Hacks 11 | . 11 . . Scan Component 5 | . 5 . . Repair 5 | . 5 . . Refit 1 | . 1 . . Recycling Unit Hacks . | . . . . Scanalyzer . | . . . . Garrison Access Hacks . | . . . . Unauthorized Hacks . | . . . . Terminals . | . . . . Fabricators . | . . . . Repair Stations . | . . . . Recycling Units . | . . . . Scanalyzers . | . . . . Garrison Access . | . . . . Data Cores Recovered . | . . . . Used . | . . . . Hacking Detections 1 | . 1 . . Full Trace Events . | . . . . Feedback Events . | . . . . Feedback Blocked . | . . . . Robot Schematics Acquired . | . . . . Robots Built . | . . . . Matter . | . . . . Time . | . . . . Total Robot Build Rating . | . . . . Part Schematics Acquired . | . . . . Parts Built . | . . . . Matter . | . . . . Time . | . . . . Total Part Build Rating . | . . . . Parts Repaired 5 | . 5 . . Time 167 | . 167 . . Parts Recycled . | . . . . Recycled Matter . | . . . . Retrieved Matter . | . . . . Retrieved Components . | . . . . Parts Scanalyzed . | . . . . Part Schematics Acquired . | . . . . Parts Damaged . | . . . . Bothacking | -11 -10 -9 -9 ------------ Run | Scr Mat Mat Min Used RIF Installer . | . . . . Robots Hacked . | . . . . Non-combat . | . . . . Combat . | . . . . Robot Hacks Applied . | . . . . Relay Couplers Released . | . . . . Robots Rewired . | . . . . Allies Hacked . | . . . . Hacks Repelled . | . . . . Allies | -11 -10 -9 -9 -------- Run | Scr Mat Mat Min Total Allies . | . . . . Largest Group . | . . . . Highest-Rated Group . | . . . . Highest-Rated Ally . | . . . . Total Orders . | . . . . Ally Attacks . | . . . . Total Damage . | . . . . Kills . | . . . . Allies Corrupted . | . . . . Allies Melted . | . . . . Intel | -11 -10 -9 -9 ------- Run | Scr Mat Mat Min Robot Analysis Total . | . . . . Derelict Logs Recovered . | . . . . Drone Launches . | . . . . Drone Recoveries . | . . . . Exploration | -11 -10 -9 -9 ------------- Run | Scr Mat Mat Min Turns Passed 521 | 85 242 148 46 Spaces Moved 438 | 68 155 175 40 Core 23 | 23 . . . Treads . | . . . . Legs . | . . . . Wheels 157 | 45 112 . . Hover 258 | . 43 175 40 Flight . | . . . . Fastest Speed 50 | 50 66 58 58 Average Speed 69 | 69 82 59 58 Slowest Speed 90 | 80 90 66 58 Overloaded Moves . | . . . . Propulsion Burnouts . | . . . . Robots Hopped . | . . . . Cave-ins Triggered . | . . . . Exploration Rate (%) 16 | 9 26 19 12 Regions Visited 3 Branch Regions 1 Pre-discovered Areas . | . . . . Known Exits Taken . | . . . . Unknown Exits Taken 3 | 1 1 1 . Scrap Searched . | . . . . Spaces Dug . | . . . . Terrain Destroyed . | . . . . Melee . | . . . . Projectile . | . . . . AOE . | . . . . Terrain Rammed . | . . . . Walls Destroyed . | . . . . Machines Disabled . | . . . . Actions | -11 -10 -9 -9 --------- Run | Scr Mat Mat Min Total 581 | 89 236 203 53 Wait 48 | . 37 11 . Move 435 | 67 154 174 40 Hop . | . . . . Pick Up 23 | 6 12 3 2 Fast Attach . | . . . . Attach 14 | 5 6 2 1 Detach . | . . . . Swap 7 | . 6 . 1 Drop 9 | . 4 2 3 Fire 43 | 11 17 9 6 Melee . | . . . . Ram 2 | . . 2 . Kick . | . . . . Crush . | . . . . Escape Stasis . | . . . . Rewire . | . . . . Trap . | . . . . Miscellaneous . | . . . . Route ------- -11/Scrapyard -10/Materials -9/Materials -9/Mines History --------- Turn | Location | Event 2 | -11/Scrapyard | Met Revision 17 61 | -11/Scrapyard | Discovered new exit (range 8) 86 | -11/Scrapyard | Entered Materials 275 | -10/Materials | Repaired Arm. Wheel 275 | -10/Materials | Repaired Lgt. Ion Engine 275 | -10/Materials | Repaired Lgt. Assault Rifle 275 | -10/Materials | Repaired Adv. Beam Cannon 307 | -10/Materials | Repaired Imp. Sensor Array 318 | -10/Materials | Discovered new exit (range 16) 319 | -10/Materials | Build established: Mutant 328 | -10/Materials | Entered another Materials area 328 | -9/Materials | Evolved 2 slots: Power x1, Propulsion x1 385 | -9/Materials | Discovered new exit (range 15) 434 | -9/Materials | Met 8R-AWN 476 | -9/Materials | Entered Mines 477 | -9/Mines | Followed 8R-AWN into the Mines 483 | -9/Mines | Attacked by 8R-AWN 522 | -9/Mines | Self-destructed Last Messages --------------- 00497_ HV Slug penetrates Seismic Survey Station. 00497_ Seismic Survey Station disabled. 00512_ HV Slug penetrates Seismic Survey Station. 00512_ Seismic Survey Station disabled. 00512_ HV Slug penetrates Seismic Survey Station. 00512_ Seismic Survey Station disabled. 00512_ HV Slug penetrates Seismic Survey Station. 00516_ Acquired Flight Unit. 00518_ Penetrated by HV Slug. 00518_ HV Slug penetrates Wall. 00518_ Penetrated by HV Slug. 00518_ HV Slug penetrates Wall. 00519_ Dropped Hover Unit. 00520_ Acquired Flight Unit. 00520_ Penetrated by HV Slug. 00520_ HV Slug penetrates Wall. 00520_ Penetrated by HV Slug. 00520_ HV Slug penetrates Earth. 00521_ Dropped Hover Unit. 00522_ Dropped Backup Propulsion I. Map ----- +----------------------------------------------------+ | | | | | | | | | | | | | | | | | | | | | ??????????????????????????????????????????????? | | ???????????????###????????????????????????????? | | ??????##########T#########????????????????????? | | ??????# #????????????????????? | | ??????# #????????????????????? | | ??????# """ """ """ """ #????????????????????? | | ??????# """ """ """ """ #????????????????????? | | ??????# """ """ """ #????????????????????? | | ??????# ##???????????????????? | | ??????# """ """ """ " ;#???????????????????? | | ??????# " " """ """ """ # #??????????????????? | | ??????# "" " " """g""" ###??????????????????? | | ??????# #####????????????????? | | ??????# """ #????????????????? | | ??????# """ """ %= ### #????????????????? | | ??????# """ " [%@= # #??????????????????? | | ??????# [%= ; #??????????????????? | | ??????###############*#;;###??????????????????? | | ????????????????????# # #????????????????????? | | ????????????????????# ####????????????????????? | | ???????????????????? ????????????????????????? | | ????????????????????# ????????????????????????? | | ????????????????????# ????????????????????????? | | ????????????????????#?????????????????????????? | | ??????????????????????????????????????????????? | | ??????????????????????????????????????????????? | | ??????????????????????????????????????????????? | | ??????????????????????????????????????????????? | | ??????????????????????????????????????????????? | | ??????????????????????????????????????????????? | | ??????????????????????????????????????????????? | | ??????????????????????????????????????????????? | | ??????????????????????????????????????????????? | | ??????????????????????????????????????????????? | | ??????????????????????????????????????????????? | | ??????????????????????????????????????????????? | | ??????????????????????????????????????????????? | | ??????????????????????????????????????????????? | | ??????????????????????????????????????????????? | | ??????????????????????????????????????????????? | +----------------------------------------------------+ Best States ------------- Heat Dissipation 42 Energy Generation 17 Energy Capacity 290 Matter Stores 300 Matter Capacity 300 Sight Range 16 Robot Scan Range 13 Terrain Scan Density 10 Resistance: KI 20 Resistance: TH 20 Resistance: EX 20 Resistance: EM 20 Resistance: I 20 Resistance: S 20 Resistance: P 20 Evasion (%) 53 Offensive Hacking 10 Item Schematics ----------------- None Robot Schematics ------------------ None Fabricated ------------ Nothing Alien Tech Used ----------------- None Achievements -------------- Part-time Mechanic Challenges ------------ None Game ------ Seed SwordMicroDisintegrator Manual? 0 Play Time 00:15:59 Cumulative 1.5 hours Start 2022.02.17 @ 04:01:51 End 2022.02.17 @ 04:16:25 Sessions 1 Manual Loads 0 Difficulty Adventurer Special Mode None Game No. 2 Rogue 0 Adventurer 2 Explorer 0 Win Type - Total 0 Types 0/0/0/0/0/0/0/0/0 Lore% 1 Gallery% 3 Achievement% 3 Wizard Run 0 Options --------- ASCII 0 Keyboard 0 Movement Mouse Keybinds 0 Fullscreen 1 Font 16/Proggy Map View 76x50 Tactical HUD 1 Map Filters NONE Filters NONE Steam 1 RUN: 4a21393e-ea4c-4aa5-8acc-3b426df006b4